[Event "Titled Tuesday Blitz February 22 Late 2022"]
[White "Federzoni, Enzo"]
[Black "Sargsyan, Anna M."]
[WhiteFideId "2173301"]
[BlackFideId "13308130"]
[WhiteElo "1956"]
[BlackElo "2271"]
[Result "1/2-1/2"]
[Round "04"]
[TimeControl "180+1"]
[Date "2022.02.23"]
[WhiteClock "0:00:08"]
[BlackClock "0:00:03"]

1. c4 {[%clk 0:03:00]}  c6 {[%clk 0:02:59]} 2. d4 {[%clk 0:03:00]}  d5 {[%clk 0:03:00]} 3. cxd5 {[%clk 0:03:00]}  cxd5 {[%clk 0:03:01]} 4. Nf3 {[%clk 0:03:01]}  Nc6 {[%clk 0:03:01]} 5. Nc3 {[%clk 0:03:00]}  Nf6 {[%clk 0:03:01]} 6. e3 {[%clk 0:02:58]}  Bg4 {[%clk 0:03:01]} 7. Qb3 {[%clk 0:02:56]}  Na5 {[%clk 0:02:55]} 8. Bb5+ {[%clk 0:02:46]}  Bd7 {[%clk 0:02:49]} 9. Qa4 {[%clk 0:02:43]}  Nc6 {[%clk 0:02:15]} 10. Ne5 {[%clk 0:02:40]}  Rc8 {[%clk 0:01:50]} 11. Bd2 {[%clk 0:02:33]}  e6 {[%clk 0:01:48]} 12. Bxc6 {[%clk 0:02:26]}  Bxc6 {[%clk 0:01:45]} 13. Qxa7 {[%clk 0:02:11]}  Bd6 {[%clk 0:01:45]} 14. Nxc6 {[%clk 0:02:05]}  bxc6 {[%clk 0:01:46]} 15. Qa4 {[%clk 0:02:05]}  O-O {[%clk 0:01:46]} 16. O-O {[%clk 0:02:05]}  c5 {[%clk 0:01:46]} 17. dxc5 {[%clk 0:02:00]}  Bxc5 {[%clk 0:01:46]} 18. Rac1 {[%clk 0:01:56]}  Rb8 {[%clk 0:01:42]} 19. Qc2 {[%clk 0:01:54]}  Bd6 {[%clk 0:01:41]} 20. b3 {[%clk 0:01:52]}  Rb4 {[%clk 0:01:14]} 21. h3 {[%clk 0:01:49]}  Qa8 {[%clk 0:01:05]} 22. Qd3 {[%clk 0:01:43]}  h6 {[%clk 0:01:02]} 23. Rfd1 {[%clk 0:01:40]}  Rb7 {[%clk 0:00:55]} 24. e4 {[%clk 0:01:33]}  Ba3 {[%clk 0:00:46]} 25. Rc2 {[%clk 0:01:29]}  dxe4 {[%clk 0:00:38]} 26. Nxe4 {[%clk 0:01:30]}  Nd5 {[%clk 0:00:38]} 27. Qg3 {[%clk 0:01:10]}  Kh8 {[%clk 0:00:37]} 28. Bc1 {[%clk 0:01:02]}  f5 {[%clk 0:00:36]} 29. Bxa3 {[%clk 0:00:59]}  Qxa3 {[%clk 0:00:37]} 30. Nc5 {[%clk 0:00:54]}  Re7 {[%clk 0:00:29]} 31. Qe5 {[%clk 0:00:50]}  Nf6 {[%clk 0:00:25]} 32. Rcd2 {[%clk 0:00:43]}  Qa5 {[%clk 0:00:21]} 33. Nd7 {[%clk 0:00:35]}  Qxe5 {[%clk 0:00:18]} 34. Nxe5 {[%clk 0:00:36]}  Kh7 {[%clk 0:00:17]} 35. Rd8 {[%clk 0:00:33]}  Rxd8 {[%clk 0:00:18]} 36. Rxd8 {[%clk 0:00:34]}  Ra7 {[%clk 0:00:18]} 37. Rd2 {[%clk 0:00:35]}  Ne4 {[%clk 0:00:17]} 38. Rc2 {[%clk 0:00:35]}  g5 {[%clk 0:00:17]} 39. f3 {[%clk 0:00:33]}  Nf6 {[%clk 0:00:16]} 40. Kf2 {[%clk 0:00:33]}  Ra5 {[%clk 0:00:15]} 41. Nc4 {[%clk 0:00:33]}  Ra7 {[%clk 0:00:14]} 42. a4 {[%clk 0:00:33]}  Nd5 {[%clk 0:00:15]} 43. Na3 {[%clk 0:00:30]}  Kg6 {[%clk 0:00:14]} 44. Nb5 {[%clk 0:00:30]}  Rb7 {[%clk 0:00:15]} 45. Rc6 {[%clk 0:00:29]}  Kf6 {[%clk 0:00:14]} 46. Rc8 {[%clk 0:00:26]}  h5 {[%clk 0:00:13]} 47. Rf8+ {[%clk 0:00:26]}  Ke7 {[%clk 0:00:13]} 48. Rh8 {[%clk 0:00:26]}  Kf6 {[%clk 0:00:14]} 49. Rxh5 {[%clk 0:00:26]}  Nf4 {[%clk 0:00:14]} 50. Rh8 {[%clk 0:00:23]}  Rd7 {[%clk 0:00:14]} 51. g3 {[%clk 0:00:17]}  Nd3+ {[%clk 0:00:14]} 52. Ke2 {[%clk 0:00:16]}  Nc1+ {[%clk 0:00:14]} 53. Ke3 {[%clk 0:00:17]}  Nxb3 {[%clk 0:00:15]} 54. Rf8+ {[%clk 0:00:15]}  Kg7 {[%clk 0:00:13]} 55. Rc8 {[%clk 0:00:16]}  Kf6 {[%clk 0:00:12]} 56. Rc7 {[%clk 0:00:15]}  Rd1 {[%clk 0:00:11]} 57. Rc3 {[%clk 0:00:16]}  Nc1 {[%clk 0:00:10]} 58. a5 {[%clk 0:00:14]}  Na2 {[%clk 0:00:09]} 59. Rd3 {[%clk 0:00:14]}  Re1+ {[%clk 0:00:09]} 60. Kf2 {[%clk 0:00:14]}  Ra1 {[%clk 0:00:10]} 61. Nc7 {[%clk 0:00:12]}  Nb4 {[%clk 0:00:08]} 62. Rb3 {[%clk 0:00:11]}  Nc6 {[%clk 0:00:07]} 63. a6 {[%clk 0:00:10]}  Nd4 {[%clk 0:00:07]} 64. Rb6 {[%clk 0:00:10]}  f4 {[%clk 0:00:06]} 65. gxf4 {[%clk 0:00:10]}  gxf4 {[%clk 0:00:06]} 66. a7 {[%clk 0:00:09]}  Rxa7 {[%clk 0:00:06]} 67. Rd6 {[%clk 0:00:10]}  Ra2+ {[%clk 0:00:06]} 68. Ke1 {[%clk 0:00:10]}  Ke5 {[%clk 0:00:07]} 69. Rd8 {[%clk 0:00:08]}  Nxf3+ {[%clk 0:00:08]} 70. Kd1 {[%clk 0:00:08]}  Rh2 {[%clk 0:00:08]} 71. Re8 {[%clk 0:00:08]}  Rxh3 {[%clk 0:00:07]} 72. Rxe6+ {[%clk 0:00:08]}  Kd4 {[%clk 0:00:07]} 73. Re2 {[%clk 0:00:08]}  Rh1+ {[%clk 0:00:07]} 74. Kc2 {[%clk 0:00:09]}  Kc4 {[%clk 0:00:05]} 75. Ne6 {[%clk 0:00:09]}  Rf1 {[%clk 0:00:04]} 76. Re4+ {[%clk 0:00:07]}  Kd5 {[%clk 0:00:03]} 77. Rxf4 {[%clk 0:00:07]}  Nd4+ {[%clk 0:00:04]} 78. Kd3 {[%clk 0:00:07]}  Rxf4 {[%clk 0:00:03]} 79. Nxf4+ {[%clk 0:00:08]} 1/2-1/2


[Site "https://www.chess.com"]

[Event "Titled Tuesday Blitz February 22 Late 2022"]
[White "Fiorito, Fabian"]
[Black "Tanenbaum, Zachary"]
[WhiteFideId "100200"]
[BlackFideId "2060850"]
[WhiteElo "2395"]
[BlackElo "2168"]
[Result "0-1"]
[Round "04"]
[TimeControl "180+1"]
[Date "2022.02.23"]
[WhiteClock "0:00:10"]
[BlackClock "0:00:07"]

1. d4 {[%clk 0:03:00]}  d5 {[%clk 0:02:53]} 2. Nc3 {[%clk 0:03:00]}  Nf6 {[%clk 0:02:52]} 3. Bf4 {[%clk 0:03:00]}  a6 {[%clk 0:02:52]} 4. e3 {[%clk 0:03:00]}  Bf5 {[%clk 0:02:51]} 5. Bd3 {[%clk 0:02:59]}  Bg6 {[%clk 0:02:51]} 6. h4 {[%clk 0:02:59]}  e6 {[%clk 0:02:50]} 7. h5 {[%clk 0:02:59]}  Bxd3 {[%clk 0:02:50]} 8. Qxd3 {[%clk 0:03:00]}  h6 {[%clk 0:02:51]} 9. O-O-O {[%clk 0:02:59]}  c5 {[%clk 0:02:48]} 10. e4 {[%clk 0:02:53]}  cxd4 {[%clk 0:02:41]} 11. Qxd4 {[%clk 0:02:51]}  Nc6 {[%clk 0:02:41]} 12. Qd3 {[%clk 0:02:47]}  Rc8 {[%clk 0:02:37]} 13. exd5 {[%clk 0:02:46]}  Nb4 {[%clk 0:02:37]} 14. Qf3 {[%clk 0:02:24]}  Rxc3 {[%clk 0:02:17]} 15. bxc3 {[%clk 0:02:21]}  Nxa2+ {[%clk 0:02:18]} 16. Kd2 {[%clk 0:02:18]}  Nxd5 {[%clk 0:02:15]} 17. Ke1 {[%clk 0:02:13]}  Naxc3 {[%clk 0:02:10]} 18. Rd3 {[%clk 0:02:11]}  Bb4 {[%clk 0:02:08]} 19. Ne2 {[%clk 0:02:00]}  Qf6 {[%clk 0:01:00]} 20. Bd2 {[%clk 0:01:46]}  Qe5 {[%clk 0:01:00]} 21. Bxc3 {[%clk 0:01:37]}  Nxc3 {[%clk 0:00:58]} 22. Rxc3 {[%clk 0:01:34]}  O-O {[%clk 0:00:53]} 23. Kf1 {[%clk 0:01:27]}  Bxc3 {[%clk 0:00:52]} 24. Nxc3 {[%clk 0:01:02]}  Rc8 {[%clk 0:00:49]} 25. Nd1 {[%clk 0:00:54]}  Rxc2 {[%clk 0:00:42]} 26. g3 {[%clk 0:00:52]}  b5 {[%clk 0:00:22]} 27. Kg2 {[%clk 0:00:52]}  b4 {[%clk 0:00:15]} 28. Ne3 {[%clk 0:00:52]}  Rc3 {[%clk 0:00:14]} 29. Rh4 {[%clk 0:00:44]}  b3 {[%clk 0:00:13]} 30. Re4 {[%clk 0:00:43]}  Qb5 {[%clk 0:00:11]} 31. Rf4 {[%clk 0:00:18]}  b2 {[%clk 0:00:11]} 32. Rxf7 {[%clk 0:00:18]}  b1=Q {[%clk 0:00:08]} 33. Rf8+ {[%clk 0:00:12]}  Kh7 {[%clk 0:00:08]} 34. Qf7 {[%clk 0:00:12]}  Qc6+ {[%clk 0:00:07]} 35. f3 {[%clk 0:00:10]}  Rc2+ {[%clk 0:00:06]} 36. Nxc2 {[%clk 0:00:09]}  Qcxc2+ {[%clk 0:00:07]} 37. Kh3 {[%clk 0:00:10]}  Qh1+ {[%clk 0:00:07]} 38. Kg4 {[%clk 0:00:11]}  Qc4+ {[%clk 0:00:07]} 39. f4 {[%clk 0:00:10]}  Qe2# {[%clk 0:00:07]} 0-1


[Site "https://www.chess.com"]

[Event "Titled Tuesday Blitz February 22 Late 2022"]
[White "Gimenez Aguirre, Alejo Ismael"]
[Black "Willathgamuwa, Kevin"]
[WhiteFideId "32041667"]
[BlackFideId "3214168"]
[WhiteElo "2031"]
[BlackElo "1943"]
[Result "1/2-1/2"]
[Round "04"]
[TimeControl "180+1"]
[Date "2022.02.23"]
[WhiteClock "0:01:42"]
[BlackClock "0:01:48"]

1. e4 {[%clk 0:03:00]}  g6 {[%clk 0:02:58]} 2. d4 {[%clk 0:03:00]}  Bg7 {[%clk 0:02:59]} 3. Nc3 {[%clk 0:03:00]}  c5 {[%clk 0:02:58]} 4. Nf3 {[%clk 0:03:00]}  cxd4 {[%clk 0:02:57]} 5. Nxd4 {[%clk 0:03:01]}  Nc6 {[%clk 0:02:58]} 6. Be3 {[%clk 0:02:59]}  Nf6 {[%clk 0:02:55]} 7. Be2 {[%clk 0:02:59]}  a6 {[%clk 0:02:53]} 8. Nxc6 {[%clk 0:02:56]}  dxc6 {[%clk 0:02:52]} 9. Qxd8+ {[%clk 0:02:55]}  Kxd8 {[%clk 0:02:53]} 10. Bb6+ {[%clk 0:02:55]}  Ke8 {[%clk 0:02:50]} 11. O-O-O {[%clk 0:02:52]}  Be6 {[%clk 0:02:45]} 12. f4 {[%clk 0:02:35]}  Nd7 {[%clk 0:02:44]} 13. Be3 {[%clk 0:02:34]}  Bxc3 {[%clk 0:02:39]} 14. bxc3 {[%clk 0:02:34]}  Bxa2 {[%clk 0:02:28]} 15. c4 {[%clk 0:02:25]}  b5 {[%clk 0:02:28]} 16. Bd4 {[%clk 0:02:25]}  f6 {[%clk 0:02:26]} 17. Kb2 {[%clk 0:02:21]}  Bxc4 {[%clk 0:02:23]} 18. Bxc4 {[%clk 0:02:21]}  bxc4 {[%clk 0:02:24]} 19. Kc3 {[%clk 0:02:22]}  e5 {[%clk 0:02:18]} 20. Be3 {[%clk 0:02:20]}  Ke7 {[%clk 0:02:09]} 21. Rd2 {[%clk 0:02:00]}  Rhd8 {[%clk 0:02:03]} 22. Rb1 {[%clk 0:01:55]}  Rab8 {[%clk 0:01:51]} 23. Ra1 {[%clk 0:01:53]}  Ra8 {[%clk 0:01:49]} 24. Rb1 {[%clk 0:01:43]}  Rab8 {[%clk 0:01:48]} 25. Ra1 {[%clk 0:01:42]}  Ra8 {[%clk 0:01:48]} 26. Rb1 {[%clk 0:01:42]} 1/2-1/2


[Site "https://www.chess.com"]

[Event "Titled Tuesday Blitz February 22 Late 2022"]
[White "Goltsev, Dmitry"]
[Black "Abdrlauf, Elham"]
[WhiteFideId "24176710"]
[BlackFideId "1533533"]
[WhiteElo "2273"]
[BlackElo "2334"]
[Result "0-1"]
[Round "04"]
[TimeControl "180+1"]
[Date "2022.02.22"]
[WhiteClock "0:00:13"]
[BlackClock "0:00:41"]

1. e4 {[%clk 0:03:00]}  c6 {[%clk 0:02:59]} 2. d4 {[%clk 0:03:00]}  d5 {[%clk 0:03:00]} 3. Nc3 {[%clk 0:03:00]}  dxe4 {[%clk 0:03:00]} 4. Nxe4 {[%clk 0:03:01]}  Nf6 {[%clk 0:03:01]} 5. Nxf6+ {[%clk 0:03:02]}  exf6 {[%clk 0:03:02]} 6. c3 {[%clk 0:03:02]}  Bd6 {[%clk 0:03:03]} 7. Bd3 {[%clk 0:03:03]}  O-O {[%clk 0:03:04]} 8. Qc2 {[%clk 0:03:03]}  Re8+ {[%clk 0:03:05]} 9. Be3 {[%clk 0:03:03]}  h5 {[%clk 0:03:06]} 10. O-O-O {[%clk 0:03:03]}  Nd7 {[%clk 0:03:06]} 11. h3 {[%clk 0:03:03]}  Nf8 {[%clk 0:03:05]} 12. g4 {[%clk 0:03:01]}  Be6 {[%clk 0:03:02]} 13. c4 {[%clk 0:02:58]}  Qa5 {[%clk 0:02:59]} 14. a3 {[%clk 0:02:53]}  b5 {[%clk 0:02:41]} 15. Ne2 {[%clk 0:02:29]}  bxc4 {[%clk 0:02:38]} 16. Bxc4 {[%clk 0:02:30]}  Rab8 {[%clk 0:02:38]} 17. Bxe6 {[%clk 0:02:23]}  Nxe6 {[%clk 0:02:36]} 18. Qc3 {[%clk 0:02:19]}  Qd5 {[%clk 0:02:30]} 19. gxh5 {[%clk 0:02:08]}  Rb3 {[%clk 0:02:30]} 20. Qc2 {[%clk 0:02:07]}  Reb8 {[%clk 0:02:27]} 21. Nc3 {[%clk 0:02:04]}  Qc4 {[%clk 0:02:05]} 22. Rd2 {[%clk 0:01:56]}  Bxa3 {[%clk 0:02:03]} 23. Nb1 {[%clk 0:01:36]}  Bxb2+ {[%clk 0:01:25]} 24. Kd1 {[%clk 0:01:34]}  Bc3 {[%clk 0:01:25]} 25. Nxc3 {[%clk 0:01:15]}  Rxc3 {[%clk 0:01:26]} 26. Qa2 {[%clk 0:01:02]}  Qxa2 {[%clk 0:01:25]} 27. Rxa2 {[%clk 0:01:03]}  Rxe3 {[%clk 0:01:26]} 28. fxe3 {[%clk 0:01:00]}  Rb1+ {[%clk 0:01:26]} 29. Kd2 {[%clk 0:01:00]}  Rxh1 {[%clk 0:01:27]} 30. Rxa7 {[%clk 0:01:01]}  Rxh3 {[%clk 0:01:24]} 31. Ra6 {[%clk 0:01:00]}  Rxh5 {[%clk 0:01:13]} 32. Rxc6 {[%clk 0:00:56]}  Ra5 {[%clk 0:01:13]} 33. Kd3 {[%clk 0:00:55]}  g5 {[%clk 0:01:12]} 34. Ke4 {[%clk 0:00:54]}  g4 {[%clk 0:01:11]} 35. d5 {[%clk 0:00:50]}  Ng5+ {[%clk 0:01:03]} 36. Kf4 {[%clk 0:00:43]}  Rxd5 {[%clk 0:00:57]} 37. Rxf6 {[%clk 0:00:42]}  g3 {[%clk 0:00:57]} 38. e4 {[%clk 0:00:31]}  g2 {[%clk 0:00:53]} 39. exd5 {[%clk 0:00:31]}  g1=Q {[%clk 0:00:53]} 40. Rf5 {[%clk 0:00:31]}  Nh3+ {[%clk 0:00:43]} 41. Ke5 {[%clk 0:00:30]}  Qe3+ {[%clk 0:00:43]} 42. Kf6 {[%clk 0:00:29]}  Kf8 {[%clk 0:00:40]} 43. Rh5 {[%clk 0:00:14]}  Qf4+ {[%clk 0:00:40]} 44. Rf5 {[%clk 0:00:13]}  Qd6# {[%clk 0:00:41]} 0-1


[Site "https://www.chess.com"]

[Event "Titled Tuesday Blitz February 22 Late 2022"]
[White "Golubka, Petro"]
[Black "Melian, Juan Sebastian"]
[WhiteFideId "14114224"]
[BlackFideId "3706575"]
[WhiteElo "2392"]
[BlackElo "1842"]
[Result "1-0"]
[Round "04"]
[TimeControl "180+1"]
[Date "2022.02.23"]
[WhiteClock "0:01:09"]
[BlackClock "0:00:09"]

1. e4 {[%clk 0:02:55]}  c6 {[%clk 0:02:50]} 2. d4 {[%clk 0:02:53]}  d5 {[%clk 0:02:47]} 3. e5 {[%clk 0:02:54]}  Bf5 {[%clk 0:02:43]} 4. Nd2 {[%clk 0:02:51]}  e6 {[%clk 0:02:38]} 5. Ngf3 {[%clk 0:02:50]}  h6 {[%clk 0:02:37]} 6. c4 {[%clk 0:02:50]}  Nd7 {[%clk 0:02:35]} 7. Be2 {[%clk 0:02:49]}  Ne7 {[%clk 0:02:34]} 8. O-O {[%clk 0:02:49]}  g5 {[%clk 0:02:34]} 9. a3 {[%clk 0:02:49]}  Bg7 {[%clk 0:02:34]} 10. b4 {[%clk 0:02:47]}  O-O {[%clk 0:02:26]} 11. Bb2 {[%clk 0:02:47]}  f6 {[%clk 0:02:25]} 12. exf6 {[%clk 0:02:45]}  Bxf6 {[%clk 0:02:22]} 13. h3 {[%clk 0:02:45]}  Ng6 {[%clk 0:02:12]} 14. g4 {[%clk 0:02:44]}  Be4 {[%clk 0:02:13]} 15. Nxe4 {[%clk 0:02:45]}  dxe4 {[%clk 0:02:13]} 16. Nd2 {[%clk 0:02:45]}  Nf4 {[%clk 0:02:07]} 17. Kh2 {[%clk 0:02:44]}  Qc7 {[%clk 0:02:00]} 18. Kh1 {[%clk 0:02:43]}  Nxh3 {[%clk 0:01:55]} 19. Nxe4 {[%clk 0:02:44]}  Bg7 {[%clk 0:01:55]} 20. Qd3 {[%clk 0:02:34]}  Nf4 {[%clk 0:01:33]} 21. Qe3 {[%clk 0:02:34]}  e5 {[%clk 0:01:26]} 22. d5 {[%clk 0:02:29]}  cxd5 {[%clk 0:01:24]} 23. cxd5 {[%clk 0:02:29]}  Nxd5 {[%clk 0:01:24]} 24. Qb3 {[%clk 0:02:28]}  Nb6 {[%clk 0:01:20]} 25. Rad1 {[%clk 0:02:23]}  Qf7 {[%clk 0:00:49]} 26. Nd6 {[%clk 0:02:19]}  Qe6 {[%clk 0:00:29]} 27. Nxb7 {[%clk 0:02:17]}  Kh8 {[%clk 0:00:30]} 28. Nc5 {[%clk 0:02:13]}  Qf7 {[%clk 0:00:23]} 29. f3 {[%clk 0:01:39]}  Rae8 {[%clk 0:00:18]} 30. Ne4 {[%clk 0:01:33]}  Rd8 {[%clk 0:00:16]} 31. a4 {[%clk 0:01:26]}  Na8 {[%clk 0:00:09]} 32. b5 {[%clk 0:01:22]}  Qf4 {[%clk 0:00:08]} 33. Rxd5 {[%clk 0:01:20]}  Nb6 {[%clk 0:00:08]} 34. Rxd8 {[%clk 0:01:19]}  Rxd8 {[%clk 0:00:09]} 35. a5 {[%clk 0:01:19]}  Na8 {[%clk 0:00:08]} 36. b6 {[%clk 0:01:18]}  axb6 {[%clk 0:00:06]} 37. a6 {[%clk 0:01:18]}  Rb8 {[%clk 0:00:07]} 38. Bc3 {[%clk 0:01:16]}  Qf8 {[%clk 0:00:07]} 39. Rd1 {[%clk 0:01:16]}  Qc8 {[%clk 0:00:07]} 40. Rd6 {[%clk 0:01:15]}  b5 {[%clk 0:00:07]} 41. Kg2 {[%clk 0:01:12]}  Qc7 {[%clk 0:00:08]} 42. Bb4 {[%clk 0:01:11]}  Nb6 {[%clk 0:00:08]} 43. Qe6 {[%clk 0:01:10]}  Nc4 {[%clk 0:00:08]} 44. Rd7 {[%clk 0:01:10]}  Qc8 {[%clk 0:00:07]} 45. Qf7 {[%clk 0:01:10]}  Qg8 {[%clk 0:00:07]} 46. Qxg8+ {[%clk 0:01:10]}  Kxg8 {[%clk 0:00:08]} 47. a7 {[%clk 0:01:09]}  Ra8 {[%clk 0:00:08]} 48. Bxc4+ {[%clk 0:01:09]}  bxc4 {[%clk 0:00:09]} 49. Bc5 {[%clk 0:01:10]}  Bf8 {[%clk 0:00:09]} 50. Nf6+ {[%clk 0:01:09]} 1-0


[Site "https://www.chess.com"]

[Event "Titled Tuesday Blitz February 22 Late 2022"]
[White "Golubovskis, Maksims"]
[Black "Kujawski, Adam"]
[WhiteFideId "11608528"]
[BlackFideId "1100920"]
[WhiteElo "2066"]
[BlackElo "2053"]
[Result "0-1"]
[Round "04"]
[TimeControl "180+1"]
[Date "2022.02.23"]
[WhiteClock "0:00:19"]
[BlackClock "0:00:44"]

1. e4 {[%clk 0:02:50]}  e5 {[%clk 0:02:59]} 2. Nf3 {[%clk 0:02:50]}  Nc6 {[%clk 0:02:59]} 3. d4 {[%clk 0:02:51]}  exd4 {[%clk 0:02:59]} 4. Nxd4 {[%clk 0:02:51]}  Bb4+ {[%clk 0:02:59]} 5. c3 {[%clk 0:02:24]}  Bc5 {[%clk 0:02:59]} 6. Be3 {[%clk 0:02:16]}  Bb6 {[%clk 0:02:58]} 7. Bc4 {[%clk 0:02:14]}  Nf6 {[%clk 0:02:57]} 8. Nd2 {[%clk 0:01:58]}  Ne5 {[%clk 0:02:56]} 9. Bb3 {[%clk 0:01:48]}  Nd3+ {[%clk 0:02:38]} 10. Ke2 {[%clk 0:01:45]}  Ne5 {[%clk 0:02:31]} 11. a4 {[%clk 0:01:36]}  d5 {[%clk 0:01:46]} 12. exd5 {[%clk 0:01:10]}  Nxd5 {[%clk 0:01:36]} 13. f4 {[%clk 0:00:42]}  Nxe3 {[%clk 0:01:24]} 14. Kxe3 {[%clk 0:00:40]}  Ng4+ {[%clk 0:01:11]} 15. Ke2 {[%clk 0:00:39]}  Bxd4 {[%clk 0:00:56]} 16. cxd4 {[%clk 0:00:34]}  Qxd4 {[%clk 0:00:49]} 17. Nf3 {[%clk 0:00:19]}  Qe3+ {[%clk 0:00:44]} 0-1


[Site "https://www.chess.com"]

[Event "Titled Tuesday Blitz February 22 Late 2022"]
[White "Gomez Ledo, Roberto Carlos"]
[Black "Buscar, Michael"]
[WhiteFideId "3507076"]
[BlackFideId "2603616"]
[WhiteElo "2379"]
[BlackElo "2010"]
[Result "1-0"]
[Round "04"]
[TimeControl "180+1"]
[Date "2022.02.23"]
[WhiteClock "0:00:08"]
[BlackClock "0:00:02"]

1. d4 {[%clk 0:02:58]}  d5 {[%clk 0:02:59]} 2. Bf4 {[%clk 0:02:58]}  e6 {[%clk 0:02:58]} 3. e3 {[%clk 0:02:57]}  c5 {[%clk 0:02:57]} 4. c3 {[%clk 0:02:56]}  Qb6 {[%clk 0:02:57]} 5. Qb3 {[%clk 0:02:55]}  c4 {[%clk 0:02:57]} 6. Qc2 {[%clk 0:02:54]}  Bd6 {[%clk 0:02:55]} 7. Bg3 {[%clk 0:02:52]}  Ne7 {[%clk 0:02:49]} 8. b3 {[%clk 0:02:52]}  cxb3 {[%clk 0:02:49]} 9. axb3 {[%clk 0:02:53]}  Nf5 {[%clk 0:02:42]} 10. Bxd6 {[%clk 0:02:43]}  Nxd6 {[%clk 0:02:39]} 11. Bd3 {[%clk 0:02:40]}  g6 {[%clk 0:02:36]} 12. Nd2 {[%clk 0:02:38]}  Nd7 {[%clk 0:02:35]} 13. c4 {[%clk 0:02:34]}  Qc7 {[%clk 0:02:19]} 14. c5 {[%clk 0:02:30]}  Nf5 {[%clk 0:02:19]} 15. Ngf3 {[%clk 0:02:23]}  Nf6 {[%clk 0:02:13]} 16. O-O {[%clk 0:02:21]}  O-O {[%clk 0:02:06]} 17. b4 {[%clk 0:02:18]}  Bd7 {[%clk 0:02:02]} 18. b5 {[%clk 0:02:17]}  Rfc8 {[%clk 0:01:58]} 19. Ra2 {[%clk 0:02:14]}  b6 {[%clk 0:01:39]} 20. c6 {[%clk 0:02:06]}  Be8 {[%clk 0:01:39]} 21. Bxf5 {[%clk 0:02:03]}  gxf5 {[%clk 0:01:29]} 22. Ra6 {[%clk 0:02:02]}  Nd7 {[%clk 0:01:10]} 23. Rfa1 {[%clk 0:01:32]}  Nb8 {[%clk 0:01:09]} 24. R6a3 {[%clk 0:01:28]}  a6 {[%clk 0:01:09]} 25. Ne5 {[%clk 0:01:19]}  f6 {[%clk 0:01:01]} 26. Nd3 {[%clk 0:01:18]}  Qd6 {[%clk 0:01:01]} 27. Qb2 {[%clk 0:01:07]}  Ra7 {[%clk 0:00:58]} 28. Nb4 {[%clk 0:01:02]}  a5 {[%clk 0:00:53]} 29. Nd3 {[%clk 0:00:46]}  Rg7 {[%clk 0:00:51]} 30. g3 {[%clk 0:00:44]}  Bh5 {[%clk 0:00:44]} 31. Nf4 {[%clk 0:00:42]}  Bf7 {[%clk 0:00:41]} 32. Nf3 {[%clk 0:00:37]}  Kh8 {[%clk 0:00:41]} 33. Nh4 {[%clk 0:00:35]}  Rcg8 {[%clk 0:00:40]} 34. Rc3 {[%clk 0:00:26]}  Bg6 {[%clk 0:00:29]} 35. Rac1 {[%clk 0:00:18]}  Rc7 {[%clk 0:00:24]} 36. Qe2 {[%clk 0:00:18]}  Rgg7 {[%clk 0:00:14]} 37. Nh5 {[%clk 0:00:15]}  Rgf7 {[%clk 0:00:06]} 38. Qf3 {[%clk 0:00:14]}  Kg8 {[%clk 0:00:06]} 39. Nf4 {[%clk 0:00:13]}  Kg7 {[%clk 0:00:05]} 40. Nd3 {[%clk 0:00:11]}  Rf8 {[%clk 0:00:05]} 41. Qf4 {[%clk 0:00:11]}  Rd8 {[%clk 0:00:04]} 42. Qxd6 {[%clk 0:00:11]}  Rxd6 {[%clk 0:00:04]} 43. Nf4 {[%clk 0:00:10]}  Kf7 {[%clk 0:00:04]} 44. Nf3 {[%clk 0:00:09]}  Rd8 {[%clk 0:00:04]} 45. h4 {[%clk 0:00:10]}  h6 {[%clk 0:00:02]} 46. h5 {[%clk 0:00:09]}  Bh7 {[%clk 0:00:03]} 47. Nh4 {[%clk 0:00:10]}  Rg8 {[%clk 0:00:03]} 48. Nhg6 {[%clk 0:00:10]}  Bxg6 {[%clk 0:00:03]} 49. Nxg6 {[%clk 0:00:08]}  Rxg6 {[%clk 0:00:03]} 50. hxg6+ {[%clk 0:00:08]}  Kxg6 {[%clk 0:00:03]} 51. Kg2 {[%clk 0:00:08]}  Kg7 {[%clk 0:00:03]} 52. Rh1 {[%clk 0:00:07]}  Kg6 {[%clk 0:00:02]} 53. Rh2 {[%clk 0:00:08]} 1-0


[Site "https://www.chess.com"]

[Event "Titled Tuesday Blitz February 22 Late 2022"]
[White "Hadzovic, Amir"]
[Black "Quirke, Jeffrey"]
[WhiteFideId "14402300"]
[BlackFideId "2013029"]
[WhiteElo "2214"]
[BlackElo "2205"]
[Result "1-0"]
[Round "04"]
[TimeControl "180+1"]
[Date "2022.02.23"]
[WhiteClock "0:00:23"]
[BlackClock "0:00:01"]

1. e4 {[%clk 0:02:55]}  c5 {[%clk 0:02:59]} 2. Nc3 {[%clk 0:02:54]}  a6 {[%clk 0:02:58]} 3. f4 {[%clk 0:02:55]}  b5 {[%clk 0:02:59]} 4. Nf3 {[%clk 0:02:55]}  Bb7 {[%clk 0:02:59]} 5. d3 {[%clk 0:02:54]}  e6 {[%clk 0:02:58]} 6. Be2 {[%clk 0:02:55]}  d5 {[%clk 0:02:53]} 7. O-O {[%clk 0:02:50]}  b4 {[%clk 0:02:51]} 8. Na4 {[%clk 0:02:48]}  dxe4 {[%clk 0:02:51]} 9. dxe4 {[%clk 0:02:49]}  Bxe4 {[%clk 0:02:50]} 10. Qxd8+ {[%clk 0:02:48]}  Kxd8 {[%clk 0:02:48]} 11. c3 {[%clk 0:02:49]}  Nf6 {[%clk 0:02:41]} 12. Be3 {[%clk 0:02:47]}  Nbd7 {[%clk 0:02:36]} 13. Ne5 {[%clk 0:02:48]}  Ke8 {[%clk 0:02:21]} 14. Rfd1 {[%clk 0:02:28]}  Nd5 {[%clk 0:02:20]} 15. Nxd7 {[%clk 0:02:05]}  Nxe3 {[%clk 0:02:13]} 16. Ndb6 {[%clk 0:02:05]}  Nxd1 {[%clk 0:02:12]} 17. Nxa8 {[%clk 0:02:05]}  Ne3 {[%clk 0:01:38]} 18. Bxa6 {[%clk 0:02:03]}  Nxg2 {[%clk 0:01:30]} 19. N8b6 {[%clk 0:01:42]}  Nxf4 {[%clk 0:01:27]} 20. Rd1 {[%clk 0:01:36]}  Be7 {[%clk 0:01:23]} 21. Bb5+ {[%clk 0:01:32]}  Kf8 {[%clk 0:01:19]} 22. Nd7+ {[%clk 0:01:33]}  Kg8 {[%clk 0:01:18]} 23. Ndxc5 {[%clk 0:01:33]}  Bf5 {[%clk 0:00:50]} 24. Rd7 {[%clk 0:01:26]}  Bf6 {[%clk 0:00:50]} 25. cxb4 {[%clk 0:01:15]}  h5 {[%clk 0:00:50]} 26. Bc6 {[%clk 0:01:13]}  g5 {[%clk 0:00:48]} 27. b5 {[%clk 0:01:11]}  g4 {[%clk 0:00:34]} 28. b6 {[%clk 0:01:10]}  h4 {[%clk 0:00:33]} 29. b7 {[%clk 0:01:09]}  Kg7 {[%clk 0:00:33]} 30. Nb6 {[%clk 0:01:00]}  g3 {[%clk 0:00:27]} 31. Be4 {[%clk 0:00:39]}  Bxe4 {[%clk 0:00:18]} 32. Nxe4 {[%clk 0:00:40]}  h3 {[%clk 0:00:09]} 33. Nxg3 {[%clk 0:00:34]}  Rb8 {[%clk 0:00:08]} 34. a4 {[%clk 0:00:26]}  Nd5 {[%clk 0:00:08]} 35. Nxd5 {[%clk 0:00:23]}  exd5 {[%clk 0:00:07]} 36. Nf5+ {[%clk 0:00:23]}  Kg6 {[%clk 0:00:07]} 37. Nd6 {[%clk 0:00:24]}  Bd4+ {[%clk 0:00:03]} 38. Kf1 {[%clk 0:00:24]}  Rg8 {[%clk 0:00:01]} 39. Nc8 {[%clk 0:00:22]}  Kh6 {[%clk 0:00:01]} 40. b8=Q {[%clk 0:00:22]}  Rg1+ {[%clk 0:00:01]} 41. Ke2 {[%clk 0:00:23]}  Rg2+ {[%clk 0:00:01]} 42. Kd3 {[%clk 0:00:23]} 1-0


[Site "https://www.chess.com"]